bitfinex/quotes_BTCUSD_20250403
["timestamp","ask_amount","ask_price","bid_price","bid_amount"]
[1743688848871,0.01,82310.0,82299.0,0.1167556]
[1743688849156,0.01,82310.0,82300.0,0.243011]
[1743688849337,0.01,82310.0,82301.0,0.1167556]
[1743688849549,0.252986,82310.0,82309.0,0.0009975]
[1743688849704,0.012149,82307.0,82297.0,0.00013862]
[1743688849916,0.243012,82301.0,82297.0,0.11689422]
[1743688850115,0.243017,82299.0,82297.0,0.00013862]
[1743688850350,0.263017,82299.0,82297.0,0.00013862]
[1743688850902,0.02,82299.0,82297.0,0.00013862]
[1743688851109,0.242996,82306.0,82298.0,0.1167556]
[1743688851311,0.243016,82299.0,82297.0,0.00013862]
[1743688851729,0.242962,82318.0,82299.0,0.255166]
[1743688851929,0.242962,82318.0,82300.0,0.1167556]
[1743688851930,0.24301,82301.0,82300.0,0.1167556]
[1743688852134,0.243019,82298.0,82297.0,0.00013862]
[1743688852341,0.265169,82298.0,82297.0,0.00013862]
[1743688852758,0.265169,82298.0,82238.0,0.243195]
[1743688852759,0.255265,82267.0,82238.0,0.243195]
[1743688852966,0.255265,82267.0,82216.0,0.000168]
[1743688852967,0.012159,82240.0,82216.0,0.000168]
[1743688853213,0.012156,82262.0,82236.0,0.01216]
[1743688853415,0.24316,82251.0,82237.0,0.1167556]
[1743688853621,0.253158,82251.0,82237.0,0.1167556]
[1743688854031,0.243161,82250.0,82237.0,0.1167556]
[1743688854215,0.243161,82250.0,82240.0,0.012159]
[1743688854216,0.01,82250.0,82240.0,0.012159]
[1743688854463,0.01,82250.0,82237.0,0.13180745]
[1743688854464,0.01,82250.0,82244.0,0.012158]
[1743688854674,0.01,82250.0,82237.0,0.01505185]
[1743688854675,0.24312,82264.0,82249.0,0.25532]
[1743688854875,0.01,82264.0,82250.0,0.1167556]
[1743688855078,0.01,82264.0,82237.0,0.01262002]
[1743688855079,0.012157,82251.0,82237.0,0.00046102]
[1743688855279,0.243191,82240.0,82238.0,0.1167556]
[1743688855482,0.243178,82244.0,82238.0,0.1167556]
[1743688855728,0.243178,82244.0,82237.0,0.00046102]
[1743688855729,0.398659,82238.0,82237.0,0.00046102]
[1743688855941,0.6454146,82238.0,82237.0,0.00046102]
[1743688856144,0.5165,82238.0,82237.0,0.00046102]
[1743688856345,0.528659,82238.0,82237.0,0.00046102]
[1743688856550,0.5165,82238.0,82237.0,0.00046102]
[1743688856838,0.528659,82238.0,82237.0,0.00046102]
[1743688857473,0.1765,82238.0,82237.0,0.00046102]
[1743688857668,0.142159,82238.0,82237.0,0.00046102]
[1743688858425,0.13,82238.0,82237.0,0.00046102]
[1743688859202,0.142159,82238.0,82237.0,0.00046102]
[1743688859452,0.13,82238.0,82237.0,0.00046102]
[1743688859863,0.13,82238.0,82237.0,0.11721662]
[1743688860058,1.04952,82265.0,82245.0,0.012158]
[1743688860307,1.04952,82265.0,82242.0,0.012159]
[1743688860308,0.243143,82256.0,82246.0,0.1167556]
[1743688860511,0.012154,82273.0,82249.0,0.012158]
[1743688860661,0.07,82272.0,82269.0,0.243101]
[1743688860895,0.313097,82272.0,82270.0,0.1167556]
[1743688861079,0.313097,82272.0,82260.0,0.21884]
[1743688861080,0.07,82272.0,82260.0,0.230996]
[1743688861284,0.255327,82248.0,82216.0,0.000168]
[1743688861466,0.01216,82235.0,82217.0,0.1167556]
[1743688861665,0.01,82235.0,82217.0,0.1167556]
[1743688862009,0.01,82235.0,82232.0,0.01216]
[1743688862214,0.01,82235.0,82218.0,0.00243248]
[1743688862215,0.012158,82246.0,82233.0,0.3358756]
[1743688862387,0.03,82246.0,82233.0,0.3358756]
[1743688862590,0.273175,82246.0,82233.0,0.3358756]
[1743688862795,0.243178,82244.0,82224.0,0.012161]
[1743688862993,0.01,82244.0,82225.0,0.3360756]
[1743688863222,0.01,82244.0,82235.0,0.1167556]
[1743688863433,0.0454,82269.0,82252.0,0.012157]
[1743688863644,0.0454,82269.0,82260.0,0.012156]
[1743688863645,0.02,82269.0,82260.0,0.012156]
[1743688864004,0.02,82269.0,82266.0,0.24311]
[1743688864212,0.02,82269.0,82258.0,0.21924]
[1743688864213,0.243034,82293.0,82267.0,0.1167556]
[1743688864434,0.012154,82276.0,82267.0,0.1167556]
[1743688864637,0.01,82276.0,82272.0,0.0009863]
[1743688864847,0.01215,82301.0,82279.0,0.012153]
[1743688864976,0.243087,82276.0,82257.0,0.243139]
[1743688865176,0.012153,82280.0,82269.0,0.1167556]
[1743688865426,0.012153,82280.0,82255.0,0.243144]
[1743688865427,0.243104,82269.0,82251.0,0.243156]
[1743688865629,0.255241,82275.0,82248.0,0.2433344]
[1743688865630,0.243161,82251.0,82248.0,0.0001684]
[1743688865875,0.34,82279.0,82248.0,0.0001684]
[1743688865876,0.42211238,82270.0,82249.0,0.1167556]
[1743688866004,0.012156,82263.0,82249.0,0.1167556]
[1743688866211,0.012157,82251.0,82248.0,0.0001684]
[1743688866414,0.255322,82249.0,82248.0,0.0001684]
[1743688866611,0.275322,82249.0,82248.0,0.0001684]
[1743688867008,0.615322,82249.0,82248.0,0.00030663]
[1743688867360,0.7320776,82249.0,82248.0,6.3e-07]
[1743688867569,0.75030778,82249.0,82248.0,6.3e-07]
[1743688867770,0.87671618,82249.0,82248.0,6.3e-07]
[1743688867952,0.88887418,82249.0,82248.0,6.3e-07]
[1743688868307,0.243258,82217.0,82216.0,0.000168]
[1743688868497,0.243237,82225.0,82222.0,0.00046102]
[1743688868719,0.02,82225.0,82222.0,0.00046102]
[1743688868851,0.02,82225.0,82224.0,0.012161]
[1743688869052,0.243191,82240.0,82226.0,0.243232]
[1743688869252,0.2432,82237.0,82227.0,0.1167556]
[1743688869464,0.01,82237.0,82227.0,0.1167556]
[1743688869668,0.01,82237.0,82222.0,0.00046102]
[1743688869669,0.243238,82224.0,82222.0,0.00046102]
[1743688869866,0.255402,82223.0,82222.0,0.00046102]
[1743688870051,0.8553153,82223.0,82222.0,2e-08]
[1743688870255,0.255476,82199.0,82172.0,0.0498]
[1743688870457,0.255476,82199.0,82165.0,0.0001681]
[1743688870458,0.595482,82197.0,82196.0,7.5e-07]
[1743688870696,0.595482,82197.0,82165.0,0.0001681]
[1743688870697,0.595539,82179.0,82178.0,1e-06]
[1743688870894,0.25556,82172.0,82171.0,1e-06]
[1743688871107,0.25556,82172.0,82165.0,1e-07]
[1743688871108,0.595579,82166.0,82165.0,1e-07]
[1743688871314,1.0173346,82166.0,82165.0,1e-07]
[1743688871516,0.900579,82166.0,82165.0,1e-07]
[1743688871985,1.0173346,82166.0,82165.0,0.00013882]
[1743688872638,0.595614,82155.0,82142.0,0.000168]
[1743688872843,0.38,82155.0,82154.0,0.00030678]
[1743688873180,0.04,82155.0,82154.0,0.00030678]
[1743688873728,0.052172,82155.0,82154.0,0.00030678]
[1743688874129,0.032172,82155.0,82154.0,0.00030678]
[1743688874370,0.372172,82155.0,82154.0,0.00030678]
[1743688874734,0.36,82155.0,82154.0,0.00030678]
[1743688874928,0.615614,82155.0,82154.0,0.00030678]
[1743688875108,0.372172,82155.0,82154.0,0.00030678]
[1743688875810,0.02,82155.0,82154.0,0.00030678]
[1743688876010,0.032172,82155.0,82154.0,0.00030678]
[1743688876214,0.02,82155.0,82154.0,0.00030678]
[1743688876815,0.02,82155.0,82154.0,0.01247878]
[1743688877022,0.02,82155.0,82154.0,0.00030678]
[1743688877232,0.02,82155.0,82154.0,0.37267938]
[1743688877648,0.243418,82164.0,82154.0,0.11706238]
[1743688877997,0.01,82164.0,82154.0,0.00030678]
[1743688878198,0.01,82164.0,82156.0,0.012171]
[1743688878386,0.01,82164.0,82154.0,0.00030678]
[1743688878739,0.01217,82164.0,82154.0,0.00030678]
[1743688878945,0.02,82164.0,82155.0,0.1167556]
[1743688879431,0.02,82164.0,82158.0,0.243432]
[1743688879655,0.243433,82159.0,82154.0,0.00030678]
[1743688879836,0.01,82159.0,82154.0,0.00030678]
[1743688880441,0.01,82159.0,82155.0,0.1167556]
[1743688880653,0.0473,82179.0,82155.0,0.1167556]
[1743688880654,0.012167,82189.0,82161.0,0.012171]
[1743688880869,0.012167,82189.0,82162.0,0.1167556]
[1743688880870,0.243391,82173.0,82162.0,0.1167556]
[1743688881075,0.02,82173.0,82157.0,0.012171]
[1743688881303,0.02,82173.0,82163.0,0.1167556]
[1743688881790,0.243418,82164.0,82154.0,0.00030678]
[1743688882028,0.02,82164.0,82156.0,0.243437]
[1743688882291,0.02,82164.0,82155.0,0.1289276]
[1743688882292,0.02,82164.0,82162.0,0.243421]
[1743688882524,0.42211238,82210.0,82181.0,0.243362]
[1743688882735,0.43427838,82191.0,82169.0,0.21528]
[1743688882984,0.243363,82182.0,82170.0,0.1167556]
[1743688883202,0.01,82182.0,82174.0,0.255552]
[1743688883438,0.01,82182.0,82169.0,0.21528]
[1743688883439,0.243388,82174.0,82169.0,0.21528]
[1743688883663,0.01,82174.0,82169.0,0.21528]
[1743688883934,0.243397,82171.0,82169.0,0.00013878]
[1743688884155,0.02,82171.0,82169.0,0.00013878]
[1743688884405,0.42211238,82200.0,82177.0,0.243377]
[1743688884739,0.43427838,82190.0,82170.0,0.1167556]
[1743688884980,0.03,82190.0,82181.0,0.243364]
[1743688885235,0.03,82190.0,82182.0,0.1167556]
[1743688885473,0.243371,82179.0,82178.0,0.2142]
[1743688885712,0.243395,82171.0,82150.0,0.34]
[1743688885965,0.253395,82171.0,82159.0,0.21396]
[1743688886225,0.012169,82170.0,82159.0,0.21396]
[1743688886456,0.052169,82170.0,82147.0,0.21388]
[1743688888912,0.052169,82170.0,82148.0,0.243461]
[1743688889136,0.392169,82170.0,82142.0,0.000168]
[1743688889366,0.5089246,82170.0,82169.0,7.8e-07]
[1743688889621,0.595614,82155.0,82142.0,0.000168]
[1743688889872,0.9823696,82155.0,82154.0,1e-06]
[1743688890597,0.34,82136.0,82133.0,0.0009971]
[1743688890829,0.255688,82131.0,82109.0,0.21172]
[1743688891050,0.455688,82131.0,82109.0,0.21172]
[1743688891530,0.795688,82131.0,82100.0,0.012667]
[1743688891766,0.255747,82112.0,82100.0,0.012667]
[1743688891995,0.02,82112.0,82111.0,0.00446163]
[1743688892229,0.032178,82112.0,82111.0,0.00446163]
[1743688892752,0.263569,82112.0,82111.0,0.00446163]
[1743688893011,0.02,82112.0,82111.0,0.00446163]
[1743688895142,0.263569,82112.0,82111.0,0.00446163]
[1743688895378,0.02,82112.0,82111.0,0.13339523]
[1743688895599,0.34,82128.0,82111.0,0.12121723]
[1743688895828,0.243535,82124.0,82112.0,0.1167556]
[1743688896058,0.02,82124.0,82112.0,0.1167556]
[1743688896525,0.243537,82123.0,82112.0,0.1167556]
[1743688896739,0.02,82123.0,82112.0,0.1167556]
[1743688896986,0.02,82123.0,82113.0,0.012178]
[1743688897220,0.012174,82140.0,82115.0,0.243558]
[1743688897495,0.24,82140.0,82119.0,0.012177]
[1743688897725,0.243502,82135.0,82120.0,0.3603016]
[1743688897974,0.243509,82133.0,82120.0,0.1167556]
[1743688898198,0.263509,82133.0,82120.0,0.1167556]
[1743688898431,0.02,82133.0,82120.0,0.1167556]
[1743688898662,0.01128524,82134.0,82121.0,0.00243547]
[1743688898900,0.03128524,82134.0,82122.0,0.1167556]
[1743688899144,0.243511,82132.0,82122.0,0.1167556]
[1743688899390,0.243515,82131.0,82122.0,0.1167556]
[1743688899624,0.243515,82131.0,82120.0,0.21]
[1743688899625,0.24353,82126.0,82111.0,0.24807263]
[1743688899863,0.02,82126.0,82120.0,4e-05]
[1743688900126,0.02,82126.0,82120.0,0.0010311]
[1743688900392,0.255718,82122.0,82120.0,0.0010311]
[1743688900604,0.03,82122.0,82120.0,4e-05]
[1743688901088,0.03,82122.0,82121.0,0.1289326]
[1743688901358,0.01128524,82130.0,82120.0,4e-05]
[1743688901565,0.03128524,82130.0,82123.0,0.012176]
[1743688901784,0.01128524,82121.0,82120.0,4e-05]
[1743688901997,0.01128524,82121.0,82120.0,0.1289726]
[1743688902690,0.01128524,82121.0,82120.0,0.1167956]
[1743688903124,0.01128524,82121.0,82120.0,0.1289726]
[1743688903567,0.01128524,82121.0,82120.0,0.1167956]
[1743688903982,0.01128524,82121.0,82120.0,0.1289726]
[1743688904186,0.01128524,82121.0,82120.0,0.3377326]
[1743688904394,0.01128524,82121.0,82120.0,0.3255556]
[1743688904830,0.01128524,82121.0,82120.0,4e-05]
[1743688905046,0.01128524,82121.0,82120.0,0.0010261]
[1743688905274,0.57042446,82121.0,82120.0,4e-05]
[1743688905486,0.41122194,82121.0,82120.0,4e-05]
[1743688906112,0.05904494,82121.0,82120.0,4e-05]
[1743688906321,0.02128524,82121.0,82120.0,4e-05]
[1743688906957,0.02128524,82121.0,82120.0,0.1167956]
[1743688907166,0.01128524,82121.0,82120.0,0.1289726]
[1743688907560,0.01128524,82121.0,82120.0,0.1167956]
[1743688907733,0.01128524,82121.0,82120.0,0.3603416]
[1743688907945,0.01128524,82121.0,82120.0,0.3725186]
[1743688908156,0.01128524,82121.0,82120.0,0.38705945]
[1743688908355,0.01128524,82121.0,82120.0,0.1167956]
[1743688908966,1.538568,82155.0,82120.0,0.1167956]
[1743688908967,0.012175,82132.0,82120.0,0.1167956]
[1743688909207,0.243543,82121.0,82120.0,4e-05]
[1743688909426,0.253543,82121.0,82120.0,4e-05]
[1743688910083,0.01,82121.0,82120.0,4e-05]
[1743688910360,0.253543,82121.0,82120.0,4e-05]
[1743688910744,0.26572,82121.0,82120.0,4e-05]
[1743688910984,0.6434669,82121.0,82120.0,4e-05]
[1743688911234,0.6891669,82121.0,82120.0,4e-05]
[1743688911470,0.7681756,82121.0,82120.0,4e-05]
[1743688911733,0.68916184,82121.0,82120.0,4e-05]
[1743688912462,0.71180319,82121.0,82120.0,4e-05]
[1743688912939,0.03264135,82121.0,82120.0,0.3725186]
[1743688913177,0.03264135,82121.0,82120.0,0.3222356]
[1743688913643,0.01,82121.0,82120.0,0.3222356]
[1743688914112,0.09184436,82148.0,82120.0,0.3222356]
[1743688914113,0.243475,82144.0,82129.0,0.012175]
[1743688914326,0.243486,82141.0,82130.0,0.1167556]
[1743688914547,0.243495,82138.0,82130.0,0.1167556]
[1743688914771,0.012175,82133.0,82120.0,0.2056482]
[1743688914984,0.012175,82131.0,82120.0,0.20564805]
[1743688915204,0.03,82131.0,82126.0,0.0009899]
[1743688915383,0.03,82131.0,82127.0,0.1167556]
[1743688915840,0.03,82131.0,82130.0,0.255691]
[1743688916054,0.0003364,82144.0,82137.0,0.243495]
[1743688916283,0.0003364,82144.0,82143.0,0.3724056]
[1743688916558,0.004,82199.0,82143.0,0.3724056]
[1743688916559,0.0454,82198.0,82170.0,0.012169]
[1743688916799,0.243347,82188.0,82170.0,0.5772016]
[1743688917011,0.03401318,82178.0,82170.0,0.3216356]
[1743688917664,0.00047536,82171.0,82170.0,0.3216356]
[1743688917932,0.00047536,82171.0,82170.0,0.3338046]
[1743688918172,0.00047536,82171.0,82170.0,0.59174245]
[1743688918402,0.00047536,82171.0,82170.0,0.93174245]
[1743688918651,0.10695262,82193.0,82192.0,0.255498]
[1743688918885,0.10695262,82193.0,82192.0,0.33645645]
[1743688919115,0.10695262,82193.0,82192.0,0.3340816]
[1743688919354,0.10695262,82193.0,82192.0,0.3219156]
[1743688919589,0.10695262,82193.0,82177.0,0.012168]
[1743688919819,0.10695262,82193.0,82151.0,1.0518]
[1743688919820,0.11695262,82193.0,82180.0,0.243368]
[1743688920036,0.11695262,82193.0,82179.0,0.012168]
[1743688920037,0.253332,82193.0,82181.0,0.1167556]
[1743688920312,0.243336,82191.0,82189.0,0.0009884]
[1743688920559,0.07,82191.0,82189.0,0.0009884]
[1743688921024,0.07,82191.0,82189.0,0.117744]
[1743688921674,0.07,82191.0,82189.0,0.117784]
[1743688921907,0.313337,82191.0,82189.0,0.0010284]
[1743688922342,0.352166,82190.0,82189.0,4e-05]
[1743688922553,0.612166,82190.0,82189.0,4e-05]
[1743688922770,0.612166,82190.0,82153.0,0.20428]
[1743688922771,0.243438,82157.0,82153.0,0.20428]
[1743688923021,0.243423,82162.0,82160.0,0.00013816]
[1743688923232,0.03,82162.0,82160.0,0.11689376]
[1743688923445,0.03,82162.0,82160.0,0.00013816]
[1743688923446,0.243424,82161.0,82160.0,0.00013816]
[1743688923657,0.243424,82161.0,82160.0,0.12906476]
[1743688923658,0.01,82161.0,82160.0,0.12906476]
[1743688923866,0.012169,82172.0,82160.0,0.11689376]
[1743688924118,0.243421,82163.0,82160.0,0.00013816]
[1743688924400,0.243422,82162.0,82160.0,0.00013816]
[1743688924650,0.02,82162.0,82161.0,0.3601796]
[1743688924876,0.243362,82182.0,82167.0,0.01217]
[1743688925106,0.243362,82182.0,82161.0,0.3723506]
[1743688925107,0.243379,82177.0,82163.0,0.243417]
[1743688925345,0.03,82177.0,82173.0,0.0009953]
[1743688925573,0.255554,82174.0,82173.0,0.0009953]
[1743688925807,0.243412,82166.0,82160.0,0.00013816]
[1743688926008,0.03,82166.0,82161.0,0.1167556]
[1743688926267,0.03,82166.0,82165.0,0.255582]
[1743688926496,0.03,82166.0,82165.0,0.1167556]
[1743688926965,0.243346,82188.0,82174.0,0.255553]
[1743688927243,0.07,82188.0,82175.0,0.1289246]
[1743688927502,0.07,82188.0,82167.0,0.243406]
[1743688927503,0.012167,82183.0,82159.0,0.012171]
[1743688927759,0.012167,82183.0,82133.0,0.06003948]
[1743688927760,0.243404,82168.0,82161.0,0.1167556]
[1743688928069,0.02,82168.0,82161.0,0.1167556]
[1743688928333,0.02,82168.0,82154.0,0.34]
[1743688928334,0.0485,82209.0,82192.0,0.24333]
[1743688928581,0.07620503,82238.0,82198.0,0.3722346]
[1743688928582,0.0489,82222.0,82198.0,0.3722346]
[1743688928831,0.012162,82223.0,82198.0,0.38677545]
[1743688929071,0.243251,82220.0,82198.0,0.3722346]
[1743688929338,0.012161,82228.0,82198.0,0.38677545]
[1743688929591,0.004,82229.0,82198.0,0.1167556]
[1743688929592,0.243275,82212.0,82198.0,0.1167556]
[1743688929813,0.004,82229.0,82198.0,0.37466757]
[1743688929814,0.00413875,82199.0,82198.0,0.37466757]
[1743688930025,0.00413875,82199.0,82198.0,0.38677545]
[1743688930250,0.00413875,82199.0,82198.0,0.38777465]
[1743688930683,0.00413875,82199.0,82198.0,0.72777465]
[1743688930956,0.004,82229.0,82213.0,0.595433]
[1743688931170,0.004,82229.0,82213.0,0.68541945]
[1743688932917,0.004,82229.0,82213.0,0.68545945]
[1743688933347,0.004,82229.0,82213.0,0.68549945]
[1743688933588,0.004,82229.0,82213.0,0.1168356]
[1743688933589,0.0103368,82214.0,82213.0,0.1168356]
[1743688935135,0.0003368,82214.0,82213.0,0.48597194]
[1743688935352,8e-07,82216.0,82215.0,0.012163]
[1743688935574,0.004,82229.0,82228.0,0.26992785]
[1743688935801,0.0003368,82266.0,82237.0,0.255358]
[1743688936070,0.0003368,82266.0,82237.0,0.72665445]
[1743688936292,0.0003368,82266.0,82252.0,0.255312]
[1743688936506,0.0003368,82266.0,82252.0,0.92680845]
[1743688936720,0.00047532,82253.0,82252.0,0.92680845]
[1743688937160,8e-07,82266.0,82265.0,0.60981185]
[1743688937378,8e-07,82266.0,82265.0,0.72656745]
[1743688937594,0.0003368,82274.0,82273.0,0.255247]
[1743688937814,0.0003368,82274.0,82273.0,0.92654345]
[1743688940423,0.0003368,82274.0,82273.0,0.92752705]
[1743688940848,0.0003368,82274.0,82273.0,0.92756705]
[1743688941318,0.0003368,82274.0,82273.0,0.13236005]
[1743688941541,0.0003368,82274.0,82273.0,0.1178192]
[1743688941756,0.0003368,82274.0,82273.0,0.1299732]
[1743688941757,0.0103368,82274.0,82273.0,0.1299732]
[1743688941972,0.0103368,82274.0,82273.0,0.1178192]
[1743688942419,0.0103368,82274.0,82273.0,0.0010636]
[1743688943283,0.0103368,82274.0,82273.0,8e-05]
[1743688943499,0.0676908,82274.0,82273.0,8e-05]
[1743688943745,0.0555368,82274.0,82273.0,8e-05]
[1743688943972,0.0676908,82274.0,82273.0,8e-05]
[1743688944164,0.0555368,82274.0,82273.0,8e-05]
[1743688945711,0.0103368,82274.0,82273.0,0.243173]
[1743688945913,0.0103368,82274.0,82273.0,0.1168356]
[1743688946374,0.0103368,82274.0,82273.0,8e-05]
[1743688946587,0.0103368,82274.0,82273.0,0.1168356]
[1743688947473,0.0103368,82274.0,82273.0,8e-05]
[1743688947900,0.0224908,82274.0,82273.0,8e-05]
[1743688948113,0.0103368,82274.0,82273.0,8e-05]
[1743688948535,0.0224908,82274.0,82273.0,8e-05]
[1743688948751,0.0103368,82274.0,82273.0,8e-05]
[1743688948975,0.3624908,82274.0,82273.0,8e-05]
[1743688949841,0.012159,82240.0,82213.0,0.012243]
[1743688950067,0.012161,82228.0,82218.0,0.1167556]
[1743688950304,0.243252,82220.0,82218.0,0.1167556]
[1743688950524,0.243252,82220.0,82217.0,0.0126227]
[1743688950525,0.255417,82218.0,82217.0,0.0004627]
[1743688950738,0.845417,82218.0,82217.0,0.0004627]
[1743688953605,0.51503336,82199.0,82198.0,8e-05]
[1743688953842,0.51503336,82199.0,82182.0,0.0001681]
[1743688953843,0.255526,82183.0,82182.0,0.0001681]
[1743688954060,0.515526,82183.0,82182.0,0.00030685]
[1743688954941,0.9722816,82183.0,82182.0,0.00030685]
[1743688956049,0.855526,82183.0,82182.0,0.00030685]
[1743688956927,0.9722816,82183.0,82182.0,8.5e-07]
[1743688957555,1.1651216,82183.0,82182.0,8.5e-07]
[1743688957777,0.855526,82183.0,82182.0,8.5e-07]
[1743688958865,0.503359,82183.0,82182.0,8.5e-07]
[1743688959089,0.515526,82183.0,82182.0,8.5e-07]
[1743688960094,0.503359,82183.0,82182.0,8.5e-07]
[1743688960268,0.515526,82183.0,82182.0,8.5e-07]
[1743688960504,0.9722816,82183.0,82182.0,8.5e-07]
[1743688961912,0.59556,82172.0,82171.0,0.004]
[1743688962119,0.9823156,82172.0,82171.0,0.004]
[1743688962543,0.595595,82161.0,82160.0,0.0001681]
[1743688962755,0.825595,82161.0,82160.0,0.00030626]
[1743688962966,1.876475,82161.0,82160.0,0.00030626]
[1743688965970,0.23,82161.0,82160.0,0.00030626]
[1743688966213,0.23,82161.0,82160.0,0.11706186]
[1743688966714,0.23,82161.0,82160.0,0.00030626]
[1743688967449,0.242171,82161.0,82160.0,0.00030626]
[1743688967691,0.23,82161.0,82160.0,0.00030626]
[1743688970537,0.23,82161.0,82160.0,0.13022606]
[1743688970754,0.243357,82184.0,82171.0,0.243394]
[1743688970972,0.243357,82184.0,82164.0,0.01217]
[1743688970973,0.08,82184.0,82180.0,0.255535]
[1743688971196,0.08,82184.0,82178.0,0.25554]
[1743688971407,0.08,82184.0,82178.0,0.1167556]
[1743688972128,0.08,82184.0,82179.0,0.1167556]
[1743688972351,0.08,82184.0,82183.0,0.243359]
[1743688972572,0.08,82184.0,82183.0,0.1167556]
[1743688972772,0.243363,82182.0,82177.0,0.18868]
[1743688973015,0.03,82182.0,82177.0,0.18868]
[1743688973261,0.012168,82180.0,82169.0,0.18824]
[1743688973499,0.24339,82173.0,82169.0,0.18824]
[1743688973777,0.03,82173.0,82169.0,0.431639]
[1743688974003,0.03,82173.0,82169.0,0.18824]
[1743688974483,0.01217,82169.0,82159.0,0.1876]
[1743688974724,0.01217,82168.0,82159.0,0.1876]
[1743688974945,0.03,82168.0,82159.0,0.1876]
[1743688975192,0.243421,82162.0,82153.0,8e-05]
[1743688975414,0.243424,82161.0,82153.0,8e-05]
[1743688975682,0.05,82161.0,82154.0,0.0009984]
[1743688975933,0.293424,82161.0,82154.0,0.0009984]
[1743688976579,0.645595,82161.0,82154.0,0.0009984]
[1743688976779,0.645595,82161.0,82130.0,0.0001681]
[1743688976780,0.255654,82142.0,82130.0,0.0001681]
[1743688976994,1.906894,82142.0,82130.0,0.0001681]
[1743688977206,1.89472,82142.0,82130.0,0.0001681]
[1743688977421,1.31124,82142.0,82130.0,0.0001681]
[1743688978289,1.55472,82142.0,82130.0,0.2436821]
[1743688978731,1.55472,82142.0,82130.0,0.0001681]
[1743688978958,1.55472,82142.0,82130.0,0.0123431]
[1743688979209,1.55472,82142.0,82130.0,0.0001681]
[1743688979448,1.31124,82142.0,82133.0,0.012175]
[1743688979687,1.31124,82142.0,82132.0,0.243507]
[1743688979931,0.26,82142.0,82141.0,0.1207556]
[1743688980182,0.045,82187.0,82166.0,0.01217]
[1743688980421,0.1303362,82184.0,82175.0,0.012169]
[1743688980665,0.13047472,82184.0,82182.0,0.243359]
[1743688980906,0.13047472,82184.0,82176.0,0.1167556]
[1743688981161,0.243374,82178.0,82176.0,0.1167556]
[1743688981375,0.14,82178.0,82173.0,0.1862]
[1743688981590,0.243384,82175.0,82173.0,0.3029556]
[1743688981809,0.243384,82175.0,82156.0,0.012171]
[1743688981810,0.17,82175.0,82160.0,0.243426]
[1743688982061,0.17,82175.0,82168.0,0.243403]
[1743688982251,0.17,82175.0,82169.0,0.1167556]
[1743688982529,0.012169,82174.0,82152.0,0.01454085]
[1743688982751,0.26,82174.0,82158.0,0.012171]
[1743688982969,0.26,82174.0,82173.0,0.255557]
[1743688983184,0.26,82174.0,82173.0,0.1167556]
[1743688983647,0.26,82174.0,82173.0,0.1289246]
[1743688984083,0.26,82174.0,82173.0,0.1167556]
[1743688984294,0.26,82174.0,82173.0,0.1289246]
[1743688984917,0.00047472,82184.0,82181.0,0.243362]
[1743688985150,0.02047472,82184.0,82182.0,0.1167556]
[1743688985364,0.243359,82183.0,82181.0,0.1167556]
[1743688985582,0.243424,82161.0,82158.0,0.18564]
[1743688985809,0.01,82161.0,82159.0,0.3601836]
[1743688986023,0.01,82161.0,82159.0,0.1167556]
[1743688986258,0.243439,82156.0,82155.0,0.18572]
[1743688986479,0.012174,82142.0,82130.0,0.0001681]
[1743688986690,0.242174,82142.0,82130.0,0.0001681]
[1743688987171,0.28000448,82142.0,82130.0,0.0001681]
[1743688987384,0.26783048,82142.0,82130.0,0.0123431]
[1743688987594,0.26783048,82142.0,82135.0,0.243501]
[1743688987803,0.23,82142.0,82134.0,0.243502]
[1743688987993,0.23,82142.0,82141.0,0.1329296]
[1743688988471,0.0488,82164.0,82145.0,0.012173]
[1743688988693,0.243459,82150.0,82146.0,0.1167556]
[1743688988897,0.01,82150.0,82146.0,0.1167556]
[1743688989738,0.243472,82145.0,82141.0,0.0041682]
[1743688989956,0.02,82145.0,82144.0,0.243474]
[1743688990161,0.02,82145.0,82144.0,0.3724026]
[1743688990679,0.0003364,82153.0,82144.0,0.1177419]
[1743688990949,0.0103364,82153.0,82146.0,0.012173]
[1743688991167,0.0103364,82153.0,82152.0,0.012172]
[1743688991377,0.0003364,82153.0,82152.0,0.12889673]
[1743688991583,0.0103364,82153.0,82152.0,0.01214113]
[1743688992013,0.0225084,82153.0,82152.0,0.01214113]
[1743688992471,0.06035177,82153.0,82152.0,0.01214113]
[1743688992903,0.17710737,82153.0,82152.0,0.01214113]
[1743688993114,0.22350737,82153.0,82152.0,0.01214113]
[1743688993326,0.56350737,82153.0,82152.0,0.01214113]
[1743688993575,0.012174,82142.0,82141.0,0.0041682]
[1743688993844,0.56349737,82142.0,82141.0,0.0041682]
[1743688994325,1.02025297,82142.0,82141.0,0.0041682]
[1743688995080,0.56349737,82142.0,82141.0,0.0041682]
[1743688995591,0.51348,82142.0,82141.0,0.0041682]
[1743688995834,0.525654,82142.0,82141.0,0.0041682]
[1743688996079,0.51348,82142.0,82141.0,0.0041682]
[1743688996316,0.525654,82142.0,82141.0,0.0041682]
[1743688996804,0.51348,82142.0,82141.0,0.0041682]
[1743688997047,0.27,82142.0,82141.0,0.0041682]
[1743688997928,0.282174,82142.0,82141.0,0.0041682]
[1743688998135,0.82263718,82142.0,82141.0,0.0041682]
[1743688998543,0.012175,82131.0,82130.0,0.0001681]
[1743688998743,0.865688,82131.0,82130.0,0.00028608]
[1743688998952,0.90349558,82131.0,82130.0,0.00028608]
[1743688999830,0.513513,82131.0,82130.0,0.00028608]
[1743689000032,0.525688,82131.0,82130.0,0.00028608]
[1743689000448,0.72542908,82131.0,82130.0,0.00028608]
[1743689000645,1.06542908,82131.0,82130.0,8e-08]
[1743689002092,1.06542908,82131.0,82130.0,0.00016828]
[1743689002211,1.24754908,82131.0,82130.0,0.00016828]
[1743689002444,1.26208993,82131.0,82130.0,2.8e-07]
[1743689002668,1.24754908,82131.0,82130.0,2.8e-07]
[1743689002860,0.255741,82114.0,82113.0,0.0010361]